bitfinex/quotes_SOLUSD_20251018
["timestamp","ask_amount","ask_price","bid_price","bid_amount"]
[1760792553770,3.38244895,186.19,186.14,0.67]
[1760792553992,0.71,186.18,186.14,0.67]
[1760792554190,0.71,186.17,186.13,0.5372589]
[1760792554587,0.71,186.17,186.1,42.40857026]
[1760792554588,0.71,186.17,186.12,16.24935292]
[1760792554788,0.71,186.17,186.12,34.34935292]
[1760792554998,0.71,186.17,186.13,0.67]
[1760792555197,3.38244895,186.18,186.14,0.67]
[1760792555495,4.09244895,186.18,186.14,0.67]
[1760792556600,3.38244895,186.17,186.12,34.34932708]
[1760792556800,3.38244895,186.15,186.12,18.1]
[1760792556997,3.38244895,186.13,186.08,30.02163794]
[1760792557184,4.09244895,186.12,186.08,30.69163794]
[1760792557392,0.71,186.12,186.08,14.5308924]
[1760792557685,3.38244895,186.21,186.08,14.5308924]
[1760792557686,3.38244895,186.14,186.09,0.67]
[1760792557884,3.38244895,186.14,186.1,0.67]
[1760792558499,3.38244895,186.14,186.1,1.20734551]
[1760792558793,4.09244895,186.13,186.08,13.99348914]
[1760792559000,4.09244895,186.13,186.08,18.69748168]
[1760792559200,4.09244895,186.13,186.09,0.67]
[1760792560302,3.38244895,186.1,186.08,13.32348914]
[1760792560594,4.09244895,186.1,186.08,13.32348914]
[1760792561593,3.38244895,186.11,186.08,13.99348914]
[1760792561905,3.38244895,186.13,186.09,1.20737438]
[1760792562510,3.38244895,186.13,186.09,6.58102133]
[1760792562892,0.71,186.16,186.1,0.67]
[1760792563097,3.38244895,186.14,186.1,18.77]
[1760792563296,4.04244895,186.14,186.1,18.77]
[1760792563494,0.66,186.14,186.1,18.77]
[1760792564002,3.38244895,186.16,186.11,0.66]
[1760792564195,4.04244895,186.16,186.12,0.66]
[1760792564911,3.38244895,186.17,186.13,0.66]
[1760792565215,3.38244895,186.18,186.14,0.66]
[1760792565514,4.04244895,186.18,186.14,0.66]
[1760792565811,0.66,186.17,186.13,0.5372589]
[1760792566006,0.66,186.17,186.13,6.56980667]
[1760792569192,4.04244895,186.17,186.13,6.56980667]
[1760792570511,4.04244895,186.17,186.13,6.03254777]
[1760792570711,3.38244895,186.17,186.12,16.24935292]
[1760792570896,4.04244895,186.16,186.12,34.34935292]
[1760792571101,3.38244895,186.17,186.13,0.66]
[1760792571308,4.04244895,186.17,186.13,0.66]
[1760792571892,4.04244895,186.16,186.12,18.1]
[1760792572106,0.66,186.15,186.12,18.1]
[1760792572300,4.04244895,186.14,186.12,18.1]
[1760792572505,4.04244895,186.14,186.09,18.63737438]
[1760792572708,4.04244895,186.14,186.09,19.29737438]
[1760792573009,4.04244895,186.14,186.1,0.66]
[1760792574420,0.66,186.14,186.1,6.03335163]
[1760792574599,4.04244895,186.13,186.09,24.01104537]
[1760792574793,4.04244895,186.13,186.09,24.67104537]
[1760792576409,4.04244895,186.13,186.09,24.01104537]
[1760792576711,4.04244895,186.13,186.1,0.66]
[1760792576913,22.88,186.17,186.11,0.66]
[1760792577100,3.38244895,186.14,186.1,6.03344137]
[1760792577291,3.38244895,186.14,186.11,0.66]
[1760792577495,3.38244895,186.14,186.1,5.37344137]
[1760792577699,4.04244895,186.13,186.09,5.91106441]
[1760792577896,4.04244895,186.12,186.09,5.37369003]
[1760792578097,0.66,186.14,186.09,5.37369003]
[1760792578316,4.04244895,186.14,186.1,0.66]
[1760792578812,3.38244895,186.14,186.11,0.66]
[1760792580216,3.38244895,186.16,186.12,0.66]
[1760792580395,3.38244895,186.17,186.13,0.66]
[1760792580596,3.38244895,186.17,186.14,0.66]
[1760792580797,4.04244895,186.18,186.14,0.66]
[1760792581209,4.04244895,186.18,186.11,37.44339469]
[1760792581210,3.38244895,186.18,186.15,0.66]
[1760792581408,0.66,186.19,186.15,0.66]
[1760792581603,0.66,186.21,186.16,0.66]
[1760792581813,3.38244895,186.19,186.16,0.66]
[1760792582616,4.04244895,186.19,186.14,5.3721387]
[1760792582817,3.38244895,186.16,186.12,5.37282957]
[1760792583008,3.38244895,186.16,186.12,16.78659255]
[1760792583212,3.38244895,186.16,186.12,17.44659255]
[1760792583402,2.16529259,186.16,186.12,6.57011734]
[1760792583604,2.82529259,186.16,186.12,6.57011734]
[1760792584514,0.66,186.21,186.14,10.87647521]
[1760792584700,2.16529259,186.22,186.16,10.87647521]
[1760792584906,0.66,186.24,186.16,10.87647521]
[1760792584907,2.16529259,186.23,186.17,1.19714347]
[1760792585107,2.82529259,186.24,186.18,0.66]
[1760792585305,2.82529259,186.24,186.19,0.53708577]
[1760792585508,2.16529259,186.25,186.2,0.66]
[1760792585710,2.16529259,186.26,186.21,0.53702808]
[1760792585913,2.16529259,186.26,186.21,1.19702808]
[1760792586218,2.16529259,186.26,186.22,0.66]
[1760792586711,2.16529259,186.25,186.22,0.66]
[1760792586908,2.85529259,186.24,186.19,5.90791075]
[1760792587101,2.85529259,186.23,186.19,5.90791075]
[1760792587314,2.16529259,186.22,186.19,5.90791075]
[1760792587616,2.16529259,186.22,186.19,6.56791075]
[1760792588021,2.85529259,186.23,186.19,6.56791075]
[1760792588411,0.69,186.23,186.19,6.56791075]
[1760792588607,2.16529259,186.24,186.2,0.66]
[1760792588823,2.16529259,186.25,186.2,0.66]
[1760792589214,2.16529259,186.24,186.2,0.66]
[1760792589413,2.85529259,186.24,186.2,0.66]
[1760792589604,2.16529259,186.21,186.17,0.53714347]
[1760792589808,2.16529259,186.2,186.17,0.53714347]
[1760792590123,2.16529259,186.2,186.17,1.19714347]
[1760792590721,2.16529259,186.2,186.17,6.56850156]
[1760792590919,2.85529259,186.21,186.17,6.56850156]
[1760792591318,2.16529259,186.22,186.18,0.66]
[1760792591518,2.16529259,186.23,186.19,0.53708577]
[1760792591711,2.16529259,186.23,186.2,0.66]
[1760792591905,2.16529259,186.21,186.18,5.37135809]
[1760792592118,2.16529259,186.2,186.17,0.53714347]
[1760792592808,25.04529259,186.18,186.13,18.76]
[1760792593029,2.16529259,186.15,186.13,16.81726403]
[1760792593219,2.16529259,186.15,186.13,16.15726403]
[1760792593522,2.16529259,186.15,186.12,5.91005936]
[1760792593723,2.16529259,186.16,186.13,0.7]
[1760792593926,2.16529259,186.17,186.13,0.7]
[1760792594302,2.16529259,186.16,186.13,0.7]
[1760792594510,2.16529259,186.15,186.11,6.07311896]
[1760792594710,2.16529259,186.12,186.08,14.02348914]
[1760792594926,2.86529259,186.12,186.08,14.02348914]
[1760792595111,2.16529259,186.12,186.09,0.7]
[1760792595430,2.16529259,186.13,186.1,0.7]
[1760792596419,2.16529259,186.12,186.08,18.69742184]
[1760792596634,2.86529259,186.12,186.08,19.39742184]
[1760792596828,2.16529259,186.12,186.09,0.7]
[1760792597425,2.16529259,186.11,186.08,18.69742184]
[1760792597606,2.16529259,186.12,186.09,0.7]
[1760792597811,2.16529259,186.12,186.08,18.69742184]
[1760792598008,2.16529259,186.11,186.08,18.69742184]
[1760792598412,2.16529259,186.11,186.08,19.39742184]
[1760792598609,2.86529259,186.1,186.08,13.32348914]
[1760792598816,2.86529259,186.09,186.08,13.32348914]
[1760792601137,2.16529259,186.09,186.08,13.32348914]
[1760792603437,2.86529259,186.09,186.08,13.32348914]
[1760792606438,22.88,186.14,186.08,13.32348914]
[1760792606620,2.16529259,186.12,186.08,14.02348914]
[1760792606821,2.16529259,186.12,186.09,0.7]
[1760792607243,2.16529259,186.12,186.1,0.7]
[1760792607439,2.16529259,186.12,186.09,0.7]
[1760792607842,2.16529259,186.12,186.08,18.69743776]
[1760792608034,2.16529259,186.09,186.08,13.32348914]
[1760792608339,2.16529259,186.1,186.08,13.32348914]
[1760792608542,2.86529259,186.09,186.08,13.32348914]
[1760792608841,25.74529259,186.09,186.08,13.32348914]
[1760792617626,0.7,186.09,186.08,13.32348914]
[1760792617830,2.86529259,186.09,186.08,13.32348914]
[1760792626662,25.74529259,186.09,186.08,13.32348914]
[1760792628038,2.86529259,186.09,186.08,13.32348914]
[1760792630152,8.23903647,186.09,186.08,13.32348914]
[1760792630455,22.88,186.08,186.05,0.1]
[1760792630656,2.16529259,186.06,186.05,0.1]
[1760792631168,2.87529259,186.06,186.05,0.1]
[1760792635647,2.16529259,186.06,186.05,0.82]
[1760792638751,8.66117036,186.12,186.05,0.82]
[1760792638958,2.16529259,186.08,186.05,0.82]
[1760792639449,2.16529259,186.1,186.05,6.19485934]
[1760792639670,2.16529259,186.1,186.06,0.72]
[1760792639854,2.16529259,186.09,186.06,0.72]
[1760792640053,2.16529259,186.08,186.06,0.72]
[1760792640460,2.16529259,186.07,186.06,0.72]
[1760792640861,22.88,186.09,186.06,0.72]
[1760792641056,2.16529259,186.07,186.05,0.1]
[1760792641251,2.16529259,186.06,186.05,0.1]
[1760792641678,2.16529259,186.06,186.05,0.82]
[1760792642453,2.16529259,186.06,186.05,0.1]
[1760792643855,2.16529259,186.06,186.05,0.82]
[1760792644460,2.16529259,186.06,186.05,0.1]
[1760792645377,3.38817018,186.06,186.05,0.1]
[1760792645784,4.08817018,186.06,186.05,0.1]
[1760792646093,22.88,186.03,186.0,200.0]
[1760792646272,3.38817018,186.01,186.0,200.0]
[1760792647993,4.08817018,186.01,186.0,200.0]
[1760792648275,23.72887062,186.01,186.0,136.18259738]
[1760792648483,41.88887061,186.01,186.0,103.86097635]
[1760792648678,76.23048323,186.01,186.0,103.86097635]
[1760792648872,76.23048323,186.01,186.0,32.48643305]
[1760792649074,12.8764752,185.96,185.95,0.1]
[1760792649258,12.8764752,185.96,185.93,0.81006036]
[1760792649259,33.75647521,185.94,185.93,0.81006036]
[1760792649460,40.53281557,185.94,185.86,0.69]
[1760792649674,3.38817018,185.92,185.86,0.69]
[1760792649995,3.38817018,185.92,185.9,0.69]
[1760792650290,3.38817018,185.92,185.88,0.69]
[1760792651198,4.08817018,185.92,185.81,0.53818416]
[1760792651364,4.08817018,185.92,185.8,16.21255639]
[1760792651365,26.26817018,185.9,185.8,0.0256516]
[1760792651673,26.26817018,185.9,185.82,5.38129782]
[1760792652068,26.26817018,185.9,185.8,16.28397618]
[1760792652390,26.96817018,185.9,185.8,0.0256516]
[1760792652592,22.88,185.89,185.82,0.69]
[1760792652890,22.88,185.82,185.81,0.69]
[1760792653082,26.26817018,185.82,185.81,0.69]
[1760792653280,3.38817018,185.82,185.81,0.69]
[1760792653684,22.88,185.87,185.81,0.69]
[1760792653685,3.38817018,185.83,185.81,0.69]
[1760792653887,22.88,185.87,185.81,0.69]
[1760792653888,3.38817018,185.85,185.81,0.69]
[1760792654191,3.38817018,185.84,185.81,0.69]
[1760792654362,3.38817018,185.83,185.81,0.69]
[1760792655069,22.88,185.88,185.81,0.69]
[1760792655380,3.38817018,185.89,185.82,0.5381552]
[1760792655584,3.38817018,185.89,185.83,0.7]
[1760792655978,3.38817018,185.88,185.83,0.7]
[1760792656782,3.38817018,185.88,185.83,6.08101756]
[1760792657088,3.38817018,185.88,185.84,0.7]
[1760792658091,3.38817018,185.87,185.84,0.7]
[1760792659074,3.38817018,185.87,185.83,5.38101756]
[1760792659274,23.58,185.92,185.84,0.7]
[1760792659487,3.38817018,185.87,185.84,0.7]
[1760792659681,3.38817018,185.86,185.83,0.7]
[1760792659975,3.38817018,185.84,185.81,16.88603145]
[1760792660175,3.38817018,185.83,185.8,0.0256516]
[1760792660473,3.38817018,185.84,185.82,0.7]
[1760792661385,3.38817018,185.83,185.8,0.0256516]
[1760792661583,3.38817018,185.82,185.8,0.0256516]
[1760792661791,3.38817018,185.82,185.8,0.7256516]
[1760792662492,3.38817018,185.82,185.81,0.7]
[1760792663395,3.38817018,185.82,185.8,0.0256516]
[1760792663700,3.38817018,185.81,185.8,0.0256516]
[1760792663884,3.38817018,185.82,185.81,0.7]
[1760792664274,3.38817018,185.82,185.8,0.0256516]
[1760792664482,3.38817018,185.81,185.8,0.0256516]
[1760792665874,3.38817018,185.82,185.8,0.7256516]
[1760792666079,0.7,185.86,185.81,0.7]
[1760792666080,3.38817018,185.83,185.81,0.7]
[1760792666275,3.38817018,185.82,185.8,0.0256516]
[1760792666496,0.7,185.83,185.8,0.0256516]
[1760792666698,3.38817018,185.84,185.81,0.7]
[1760792666883,3.38817018,185.87,185.82,1.2381552]
[1760792667191,3.38817018,185.9,185.83,11.57647521]
[1760792667395,3.38817018,185.9,185.84,1.23809728]
[1760792667699,3.38817018,185.92,185.85,0.7]
[1760792667890,3.38817018,185.93,185.86,0.53803938]
[1760792668087,3.38817018,185.93,185.87,0.7]
[1760792668481,22.88,185.95,185.87,0.7]
[1760792668687,3.38817018,185.93,185.87,0.7]
[1760792668888,3.38817018,185.92,185.87,0.7]
[1760792669103,3.38817018,185.92,185.88,0.7]
[1760792669711,3.38817018,185.89,185.85,0.7]
[1760792670097,3.38817018,185.9,185.86,0.7]
[1760792670682,3.38817018,185.88,185.83,6.08121216]
[1760792670923,3.38817018,185.87,185.82,0.5381552]
[1760792671109,3.38817018,185.87,185.82,1.2381552]
[1760792671288,4.08817018,185.86,185.81,6.08157352]
[1760792671489,4.08817018,185.85,185.8,0.56386473]
[1760792671688,3.38817018,185.85,185.81,0.7]
[1760792671905,3.38817018,185.86,185.82,0.7]
[1760792672193,3.38817018,186.03,185.87,10.87647521]
[1760792672386,4.08817018,186.0,185.89,10.87647521]
[1760792672591,4.08817018,186.0,185.92,5.37865748]
[1760792672789,3.38817018,186.01,185.93,1.23783682]
[1760792673007,3.38817018,186.04,185.95,10.87647521]
[1760792673202,0.2,186.08,185.96,1.23775005]
[1760792673203,3.38817018,186.01,185.96,1.23775005]
[1760792673507,0.7,186.0,185.96,0.7]
[1760792673706,9.0923053,186.01,185.96,0.7]
[1760792674091,8.3923053,186.03,185.97,1.23772113]
[1760792674293,8.3923053,186.04,185.98,0.7]
[1760792674492,0.7,186.05,185.98,0.7]
[1760792674706,22.88,186.03,185.98,0.7]
[1760792674913,9.0923053,186.03,185.98,0.7]
[1760792675413,9.0923053,186.03,185.98,6.07674621]
[1760792675710,8.3923053,186.05,185.99,0.7]
[1760792676410,8.3923053,186.03,185.98,0.53769222]
[1760792676603,8.3923053,186.02,185.98,1.23769222]
[1760792676801,9.0923053,186.02,185.96,0.53775005]
[1760792676999,8.3923053,186.04,185.97,0.7]
[1760792677210,31.2723053,186.05,185.98,11.41416743]
[1760792677398,31.2723053,186.05,185.99,0.7]
[1760792677810,31.2723053,186.05,186.0,0.5376344]
[1760792678109,8.3923053,186.05,186.01,0.7]
[1760792678313,9.0923053,186.06,186.01,0.7]
[1760792678493,8.3923053,186.06,186.0,0.5376344]
[1760792678694,8.5923053,186.08,186.03,5.37547707]
[1760792678901,9.0923053,186.07,186.01,6.07582114]
[1760792679096,8.3923053,186.04,185.99,0.7]
[1760792679299,8.3923053,186.05,186.0,0.7]
[1760792679508,8.3923053,186.03,185.97,0.7]
[1760792679701,8.3923053,186.01,185.96,10.87647521]
[1760792679896,8.3923053,186.01,185.97,0.7]
[1760792681110,8.3923053,186.0,185.96,5.37746557]
[1760792681318,8.3923053,186.0,185.96,6.07746557]
[1760792681614,9.0923053,185.99,185.95,5.37778703]
[1760792682115,9.0923053,185.99,185.95,6.07778703]
[1760792682306,9.0923053,185.99,185.95,5.37778703]
[1760792682508,9.0923053,185.99,185.93,0.53783682]
[1760792682509,9.0923053,185.98,185.93,6.07809561]
[1760792683092,22.88,186.01,185.94,12.1142831]
[1760792683306,9.0923053,186.03,185.95,11.55647521]
[1760792683497,9.0923053,186.03,185.96,1.21775005]
[1760792683704,9.0923053,186.03,185.97,0.68]
[1760792684196,8.3923053,186.03,185.98,0.53769222]
[1760792684399,9.0923053,186.03,185.98,1.21769222]
[1760792684913,22.88,186.06,185.98,5.91439375]
[1760792685104,8.3923053,186.03,185.99,0.68]
[1760792685415,0.7,186.05,185.99,0.68]
[1760792685416,8.3923053,186.04,185.99,0.68]
[1760792685616,9.0923053,186.04,185.99,0.68]
[1760792686619,9.0923053,186.04,185.98,5.91439375]
[1760792686620,8.3923053,186.05,186.0,1.2176344]
[1760792686919,0.7,186.05,186.0,1.2176344]
[1760792687216,9.0923053,186.05,186.0,6.5939566]
[1760792687917,9.0923053,186.04,186.0,5.3763222]
[1760792688118,0.7,186.03,186.0,5.3763222]
[1760792688709,8.3923053,186.04,186.0,5.3763222]
[1760792688907,8.3923053,186.05,186.0,5.3763222]
[1760792689100,0.7,186.04,186.0,5.3763222]
[1760792689296,0.7,186.04,185.99,16.25310836]
[1760792689523,8.3923053,186.05,186.0,1.2176344]
[1760792689910,9.0923053,186.05,186.0,1.2176344]
[1760792690112,9.0923053,186.04,186.0,0.68]
[1760792690311,9.0923053,186.04,185.99,5.37663315]
[1760792690512,0.7,186.04,186.0,1.2176344]
[1760792690715,8.3923053,186.05,186.0,1.2176344]
[1760792690716,8.3923053,186.05,186.01,0.68]
[1760792690912,8.3923053,186.06,186.02,0.68]
[1760792691205,9.0923053,186.07,186.02,6.0556411]
[1760792691406,0.7,186.06,186.02,6.0556411]
[1760792691720,9.0923053,186.05,186.0,24.01395576]
[1760792691901,9.0923053,186.04,186.0,19.3176344]
[1760792692098,8.3923053,186.04,186.0,5.37631849]
[1760792692325,8.3923053,186.05,186.01,0.68]
[1760792692618,8.3923053,186.05,186.0,5.37631849]
[1760792692816,0.7,186.05,186.0,6.05631849]
[1760792693504,9.0923053,186.05,186.0,6.05631849]
[1760792693912,9.0923053,186.04,185.99,5.37661763]
[1760792694237,9.0923053,186.03,185.99,5.37661763]
[1760792694521,9.0923053,186.05,185.99,5.37661763]
[1760792694724,0.7,186.05,186.0,11.41410961]
[1760792694903,0.7,186.05,186.0,12.09410961]
[1760792695326,0.7,186.05,186.01,5.37605505]
[1760792695924,0.7,186.05,186.01,6.05605505]
[1760792697911,9.0923053,186.05,186.01,5.37605505]
[1760792698112,0.7,186.04,186.01,5.37605505]
[1760792698424,8.3923053,186.04,186.0,0.5376344]
[1760792698622,0.7,186.03,186.0,5.91391704]
[1760792698826,8.3923053,186.04,186.0,6.59391704]
[1760792699026,9.0923053,186.05,186.0,6.59391704]
[1760792699625,0.7,186.04,186.0,5.37628264]
[1760792699830,0.7,186.03,186.0,5.37628264]
[1760792700025,8.3923053,186.04,186.0,6.05628264]
[1760792700537,8.3923053,186.02,185.99,18.1]
[1760792700830,9.0923053,186.02,185.98,18.1]
[1760792701228,9.0923053,186.02,185.98,18.78]
[1760792701615,8.3923053,186.01,185.98,18.78]
[1760792701814,9.0923053,186.02,185.98,18.78]
[1760792702530,9.0923053,186.02,185.98,24.15691875]
[1760792702723,9.0923053,186.02,185.98,18.78]
[1760792703431,8.3923053,186.01,185.98,18.78]
[1760792703814,8.3923053,185.99,185.95,10.87647521]
[1760792704010,8.3923053,185.98,185.95,29.65647521]
[1760792704325,8.3923053,185.97,185.94,5.37782942]
[1760792704526,8.3923053,185.97,185.94,6.05782942]
[1760792704817,8.3923053,185.96,185.92,6.59629156]
[1760792705020,8.3923053,185.96,185.92,6.05842582]
[1760792705213,8.3923053,185.97,185.93,0.68]
[1760792705416,5.52530538,185.97,185.93,0.68]
[1760792705630,6.22530538,185.97,185.93,0.68]
[1760792705819,5.52530538,185.95,185.9,6.05923614]
[1760792706133,5.52530538,185.95,185.91,0.68]
[1760792706330,5.52530538,185.95,185.92,0.68]
[1760792706837,6.22530538,185.96,185.92,0.68]
[1760792707031,28.40530538,185.98,185.93,0.68]
[1760792707232,22.88,185.98,185.93,0.68]
[1760792707426,28.40530538,185.99,185.94,0.68]
[1760792707630,29.10530538,185.99,185.94,0.68]
[1760792707846,6.22530538,185.98,185.94,0.68]
[1760792708023,5.52530538,185.96,185.92,5.91642682]
[1760792708224,5.52530538,185.96,185.91,5.37887357]
[1760792708424,6.22530538,185.96,185.91,6.05887357]
[1760792708748,23.58,185.99,185.92,1.21786574]
[1760792709035,5.52530538,186.0,185.93,11.55647521]
[1760792709332,0.7,186.01,185.94,1.21780789]
[1760792709547,6.22530538,186.01,185.95,0.68]
[1760792709937,28.40530538,186.02,185.96,0.53775005]
[1760792710120,28.40530538,186.02,185.96,1.21775005]
[1760792710534,29.10530538,186.02,185.96,1.21775005]
[1760792711234,11.07647521,186.08,185.96,1.21775005]
[1760792711235,28.40530538,186.04,185.97,6.05721137]
[1760792711434,22.88,186.04,185.98,1.21769222]
[1760792711631,22.88,186.04,185.98,19.31769222]
[1760792712027,22.88,186.04,185.99,0.68]
[1760792712227,23.58,186.04,186.0,0.5376344]
[1760792713144,22.88,186.04,186.0,0.5376344]
[1760792713341,0.67,186.03,186.0,0.5376344]
[1760792713546,0.67,186.03,186.0,5.91391996]
[1760792715628,22.88,186.04,186.0,5.91391996]
[1760792715831,0.67,186.07,186.01,0.67]
[1760792716033,2.368129,186.08,186.02,0.5375766]
[1760792716237,2.368129,186.08,186.03,0.67]
[1760792716448,0.2,186.08,186.04,1.20751881]
[1760792716645,0.2,186.08,186.05,11.54647521]
[1760792716826,0.2,186.08,186.07,10.87647521]
[1760792717150,0.2,186.08,186.07,11.54647521]
[1760792717720,0.2,186.08,186.07,17.45822884]
[1760792719552,0.2,186.08,186.07,16.78822884]
[1760792719844,0.2,186.08,186.07,5.91175363]
[1760792721122,0.2,186.08,186.07,0.53743214]
[1760792721328,0.87,186.08,186.05,16.25110025]
[1760792721632,0.2,186.08,186.06,1.20746103]
[1760792721837,0.2,186.08,186.07,0.67]
[1760792722827,0.2,186.08,186.07,6.04432149]
[1760792723650,0.2,186.08,186.07,5.37432149]
[1760792724744,0.2,186.08,186.07,6.04432149]
[1760792725131,0.2,186.08,186.07,16.9207967]
[1760792727749,0.2,186.08,186.07,35.0207967]
[1760792727953,0.2,186.08,186.07,34.3507967]
[1760792728258,0.87,186.08,186.07,18.1]
[1760792728551,0.2,186.08,186.07,18.1]
[1760792728857,0.2,186.08,186.07,24.01175363]
[1760792731229,0.2,186.08,186.07,23.47432149]
[1760792731432,0.87,186.08,186.07,23.47432149]
[1760792731632,0.2,186.08,186.07,23.47432149]
[1760792733550,0.2,186.08,186.06,5.37461034]
[1760792733756,0.2,186.08,186.07,0.53743214]
[1760792734256,0.2,186.08,186.06,5.37461034]
[1760792734257,0.87,186.08,186.06,5.37461034]
[1760792734759,0.2,186.08,186.06,5.37461034]
[1760792737940,0.67,186.07,186.05,24.01235423]
[1760792738460,2.368129,186.08,186.05,24.01235423]
[1760792738659,2.368129,186.08,186.05,18.1]
[1760792738660,0.67,186.07,186.05,18.1]
[1760792738846,2.838129,186.07,186.04,5.91263829]
[1760792740371,0.67,186.07,186.04,5.91263829]
[1760792740943,0.2,186.08,186.05,0.67]
[1760792741153,0.2,186.08,186.06,1.20746103]
[1760792742361,0.2,186.08,186.06,6.58185574]
[1760792743062,0.2,186.08,186.06,0.53746103]
[1760792743267,0.2,186.08,186.05,5.37485746]
[1760792743468,0.2,186.08,186.05,6.04485746]
[1760792744460,0.2,186.08,186.06,0.67]
[1760792744665,0.2,186.08,186.05,5.37485746]
[1760792744666,0.2,186.08,186.05,6.04485746]
[1760792747968,0.2,186.08,186.06,6.04451687]
[1760792748266,0.2,186.08,186.06,5.37451687]
[1760792750972,0.2,186.08,186.05,6.04489922]
[1760792752971,0.9,186.08,186.04,24.01262572]
[1760792753174,0.9,186.08,186.04,24.68262572]
[1760792753656,0.9,186.08,186.04,24.01262572]
[1760792753857,0.2,186.08,186.05,0.67]
[1760792754059,0.2,186.08,186.05,6.04465643]
[1760792754260,0.2,186.08,186.05,24.14465643]
[1760792754772,0.2,186.08,186.05,23.47465643]
[1760792754971,0.7,186.07,186.05,23.47465643]
[1760792755171,0.2,186.08,186.05,23.47465643]
[1760792755473,0.9,186.08,186.05,23.47465643]
[1760792755655,0.2,186.08,186.05,24.14465643]
[1760792756770,2.168129,186.07,186.05,18.1]
[1760792756975,0.2,186.08,186.02,0.67]
[1760792756976,2.868129,186.06,186.03,18.1]
[1760792757275,2.868129,186.05,186.02,23.47573024]
[1760792758055,2.868129,186.04,186.01,0.67]
[1760792758260,2.868129,186.04,185.99,18.77]
[1760792758456,2.868129,186.04,186.0,0.67]
[1760792759378,2.868129,186.04,186.0,6.04632497]
[1760792759677,0.7,186.03,186.0,5.37632497]
[1760792759867,23.08,186.08,186.0,5.37632497]
[1760792760075,2.168129,186.04,186.0,6.04632497]
[1760792760275,2.868129,186.04,186.0,6.04632497]
[1760792760779,2.868129,186.04,186.0,5.37632497]
[1760792760980,2.868129,186.04,186.0,6.04632497]
[1760792761387,2.868129,186.04,186.0,5.37632497]
[1760792761569,2.168129,186.07,186.02,10.87647521]
[1760792761763,2.368129,186.08,186.03,1.2075477]
[1760792762070,3.068129,186.08,186.04,0.67]
[1760792762277,2.368129,186.08,186.05,0.67]
[1760792762791,2.168129,186.07,186.03,18.6375477]
[1760792763087,2.168129,186.04,186.03,18.1]
[1760792763293,2.168129,186.05,186.01,24.14602871]
[1760792763472,0.7,186.04,186.01,18.1]
[1760792763785,2.868129,186.04,186.01,18.1]
[1760792764084,2.168129,186.04,186.01,18.77]
[1760792764384,2.868129,186.04,186.01,18.1]
[1760792764690,2.868129,186.04,186.01,18.77]
[1760792767173,2.168129,186.06,186.01,23.47592824]
[1760792767468,3.38730477,186.06,186.02,0.72]
[1760792767675,3.38730477,186.06,186.03,0.72]
[1760792768476,4.06730477,186.06,186.01,24.01353374]
[1760792768677,3.38730477,186.06,186.02,0.72]
[1760792768882,3.38730477,186.06,186.03,1.2575477]
[1760792769181,0.2,186.08,186.04,0.72]
[1760792769485,0.2,186.08,186.04,18.82]
[1760792769802,0.2,186.08,186.05,1.25748992]
[1760792769982,0.2,186.08,186.06,0.72]
[1760792770368,0.2,186.08,186.07,0.53743214]
[1760792770787,0.2,186.08,186.07,1.25743214]
[1760792771086,0.2,186.08,186.07,6.63175363]
[1760792771485,0.2,186.08,186.07,0.53743214]
[1760792771691,0.2,186.08,186.06,5.91196763]
[1760792772079,0.2,186.08,186.05,6.0948871]
[1760792772589,3.58730477,186.08,186.05,5.3748871]
[1760792772783,4.06730477,186.07,186.03,0.5375477]
[1760792772976,3.38730477,186.06,186.03,0.5375477]
[1760792773170,3.38730477,186.07,186.03,0.5375477]
[1760792773373,3.58730477,186.08,186.04,0.69]
[1760792773581,0.2,186.08,186.05,0.53748992]
[1760792773894,0.2,186.08,186.06,0.69]
[1760792774680,4.24730477,186.08,186.05,0.53748992]
[1760792774877,3.58730477,186.08,186.05,0.53748992]
[1760792775084,4.24730477,186.08,186.05,0.53748992]
[1760792776189,3.38730477,186.07,186.04,5.3749275]